fUST/lending_fUST_20250309
["ID","MTS","AMOUNT","RATE_DAILY","PERIOD"]
[355745119,1741525846440,-500.0,0.00047123,120]
[355745120,1741525846450,-500.0,0.00047123,120]
[355745121,1741525846460,-2612.41,0.00047123,120]
[355745123,1741525846469,-500.0,0.00047123,120]
[355745124,1741525846478,-500.0,0.00047123,120]
[355745125,1741525846488,-500.0,0.00047123,120]
[355745126,1741525846498,-500.0,0.00047123,120]
[355745127,1741525846508,-500.0,0.00047123,120]
[355745128,1741525846518,-678.46,0.00047123,120]
[355745129,1741525846528,-500.0,0.00047123,120]
[355745130,1741525846537,-507.94133595,0.00047123,120]
[355745131,1741525846547,-500.0,0.00047123,120]
[355745132,1741525846557,-151.0,0.00047123,120]
[355745133,1741525846566,-200.303231,0.00047123,120]
[355745134,1741525846575,-589.64,0.00047123,120]
[355745135,1741525846585,-500.0,0.00047123,120]
[355745136,1741525846595,-500.0,0.00047123,120]
[355745137,1741525846604,-500.0,0.00047123,120]
[355745138,1741525846614,-1515.68,0.00047123,120]
[355745139,1741525846623,-500.0,0.00047123,120]
[355745140,1741525846633,-500.0,0.00047123,120]
[355745141,1741525846642,-670.97,0.00047123,120]
[355745142,1741525846651,-999.28,0.00047123,120]
[355745143,1741525846660,-506.59,0.00047123,120]
[355745144,1741525846669,-500.0,0.00047123,120]
[355745145,1741525846679,-5226.29,0.00047123,120]
[355745146,1741525846688,-500.0,0.00047123,120]
[355745147,1741525846697,-500.0,0.00047123,120]
[355745148,1741525846707,-500.0,0.00047123,120]
[355745149,1741525846716,-500.0,0.00047123,120]
[355745150,1741525846725,-500.0,0.00047123,120]
[355745151,1741525846735,-500.0,0.00047123,120]
[355745152,1741525846744,-500.0,0.00047123,120]
[355745153,1741525846755,-500.0,0.00047123,120]
[355745154,1741525846764,-587.04,0.00047123,120]
[355745155,1741525846774,-500.0,0.00047123,120]
[355745156,1741525846783,-500.0,0.00047123,120]
[355745157,1741525846792,-8866.56,0.00047123,120]
[355745158,1741525846802,-500.0,0.00047123,120]
[355745159,1741525846811,-500.0,0.00047123,120]
[355745160,1741525846820,-3604.69,0.00047123,120]
[355745161,1741525846830,-972.72,0.00047123,120]
[355745162,1741525846839,-1116.22,0.00047123,120]
[355745163,1741525846848,-500.0,0.00047123,120]
[355745164,1741525846858,-591.97,0.00047123,120]
[355745165,1741525846867,-500.0,0.00047123,120]
[355745166,1741525846877,-500.0,0.00047123,120]
[355745167,1741525846887,-500.0,0.00047123,120]
[355745168,1741525846896,-1339.65,0.00047123,120]
[355745169,1741525846906,-1343.94,0.00047123,120]
[355745170,1741525846916,-500.0,0.00047123,120]
[355745171,1741525846926,-500.0,0.00047123,120]
[355745172,1741525846936,-500.0,0.00047123,120]
[355745173,1741525846946,-500.0,0.00047123,120]
[355745174,1741525846955,-500.0,0.00047123,120]
[355745175,1741525846965,-500.0,0.00047123,120]
[355745176,1741525846974,-500.0,0.00047123,120]
[355745177,1741525846984,-500.0,0.00047123,120]
[355745178,1741525846994,-2072.12,0.00047123,120]
[355745179,1741525847004,-500.0,0.00047123,120]
[355745180,1741525847013,-548.941183,0.00047123,120]
[355745181,1741525847022,-548.941183,0.00047123,120]
[355745182,1741525847032,-500.0,0.00047123,120]
[355745183,1741525847041,-500.0,0.00047123,120]
[355745184,1741525847051,-548.941183,0.00047123,120]
[355745185,1741525847061,-548.941183,0.00047123,120]
[355745186,1741525847071,-500.0,0.00047123,120]
[355745187,1741525847081,-500.0,0.00047123,120]
[355745188,1741525847090,-1260.45,0.00047123,120]
[355745189,1741525847099,-500.0,0.00047123,120]
[355745190,1741525847108,-243.839853,0.00047123,120]
[355745191,1741525847118,-2731.32,0.00047123,120]
[355745192,1741525847127,-243.839853,0.00047123,120]
[355745193,1741525847137,-573.64204784,0.00047123,120]
[355745194,1741525847146,-151.0,0.00047123,120]
[355745195,1741525847155,-151.0,0.00047123,120]
[355745196,1741525847166,-243.839853,0.00047123,120]
[355745197,1741525847176,-500.0,0.00047123,120]
[355745198,1741525847186,-243.839853,0.00047123,120]
[355745199,1741525847197,-500.0,0.00047123,120]
[355745200,1741525847213,-322.40967256,0.00047123,120]
[355745201,1741525847224,-1000.0,0.00047123,7]
[355745202,1741525847234,-1272.16,0.00047123,120]
[355745203,1741525847244,-500.0,0.00047123,120]
[355745204,1741525847254,-500.0,0.00047123,120]
[355745205,1741525847264,-500.0,0.00047123,120]
[355745206,1741525847274,-933.32,0.00047123,120]
[355745207,1741525847284,-46273.82,0.00047123,7]
[355745208,1741525847293,-500.0,0.00047123,120]
[355745209,1741525847303,-500.0,0.00047123,120]
[355745210,1741525847312,-500.0,0.00047123,120]
[355745211,1741525847320,-500.0,0.00047123,120]
[355745212,1741525847329,-500.0,0.00047123,120]
[355745213,1741525847338,-843.72,0.00047123,120]
[355745214,1741525847348,-500.0,0.00047123,120]
[355745215,1741525847357,-1251.72,0.00047123,120]
[355745216,1741525847367,-500.0,0.00047123,120]
[355745217,1741525847376,-500.0,0.00047123,120]
[355745218,1741525847385,-151.0,0.00047123,120]
[355745219,1741525847395,-151.0,0.00047123,120]
[355745220,1741525847404,-500.0,0.00047123,120]
[355745221,1741525847413,-500.0,0.00047123,120]
[355745222,1741525847423,-167.51872754,0.00047123,120]
[355745223,1741525847432,-500.0,0.00047123,120]
[355745224,1741525847441,-500.0,0.00047123,120]
[355745225,1741525847451,-500.0,0.00047123,120]
[355745226,1741525847459,-500.0,0.00047123,120]
[355745227,1741525847468,-500.0,0.00047123,120]
[355745228,1741525847478,-1865.39,0.00047123,30]
[355745229,1741525847487,-500.0,0.00047123,120]
[355745230,1741525847496,-500.0,0.00047123,120]
[355745231,1741525847506,-500.0,0.00047123,2]
[355745232,1741525847515,-500.0,0.00047123,120]
[355745233,1741525847524,-500.0,0.00047123,120]
[355745234,1741525847533,-500.0,0.00047123,120]
[355745235,1741525847542,-500.0,0.00047123,120]
[355745236,1741525847552,-500.0,0.00047123,120]
[355745237,1741525847561,-583.52,0.00047123,120]
[355745238,1741525847650,-615.43,0.00047123,120]
[355745239,1741525847660,-500.0,0.00047123,120]
[355745240,1741525847670,-503.73761624,0.00047123,120]
[355745241,1741525847679,-500.0,0.00047123,120]
[355745242,1741525847689,-500.0,0.00047123,120]
[355745243,1741525847698,-1334.12,0.00047123,120]
[355745244,1741525847707,-637.41,0.00047123,120]
[355745245,1741525847717,-500.0,0.00047123,120]
[355745246,1741525847726,-500.0,0.00047123,120]
[355745247,1741525847735,-500.0,0.00047123,120]
[355745248,1741525847744,-500.0,0.00047123,120]
[355745249,1741525847754,-500.0,0.00047123,120]
[355745250,1741525847764,-665.99,0.00047123,120]
[355745251,1741525847773,-500.0,0.00047123,120]
[355745252,1741525847782,-260.03433,0.00047123,120]
[355745253,1741525847791,-260.03433,0.00047123,120]
[355745254,1741525847801,-500.0,0.00047123,120]
[355745255,1741525847810,-500.0,0.00047123,120]
[355745256,1741525847820,-260.03433,0.00047123,120]
[355745257,1741525847829,-260.03433,0.00047123,120]
[355745258,1741525847839,-500.0,0.00047123,120]
[355745259,1741525847848,-224.673376,0.00047123,120]
[355745260,1741525847858,-752.81,0.00047123,120]
[355745261,1741525847867,-224.673376,0.00047123,120]
[355745262,1741525847877,-500.0,0.00047123,120]
[355745263,1741525847886,-500.0,0.00047123,120]
[355745264,1741525847895,-500.0,0.00047123,120]
[355745265,1741525847905,-500.0,0.00047123,120]
[355745266,1741525847914,-500.0,0.00047123,120]
[355745267,1741525847923,-500.0,0.00047123,120]
[355745268,1741525847932,-500.0,0.00047123,120]
[355745269,1741525847941,-500.0,0.00047123,2]
[355745270,1741525847950,-635.33,0.00047123,120]
[355745271,1741525847960,-224.673376,0.00047123,120]
[355745272,1741525847970,-224.673376,0.00047123,120]
[355745273,1741525847979,-13770.1,0.00047123,2]
[355745274,1741525847988,-500.0,0.00047123,120]
[355745275,1741525847997,-500.0,0.00047123,120]
[355745276,1741525848007,-500.0,0.00047173,10]
[355745277,1741525848016,-500.0,0.00047173,10]
[355745278,1741525848026,-500.0,0.00047173,10]
[355745279,1741525848035,-150.0,0.00047173,3]
[355745280,1741525848045,-500.0,0.00047173,10]
[355745281,1741525848054,-151.0,0.00047483,120]
[355745282,1741525848064,-532.09,0.00047535,9]
[355745283,1741525848074,-7938.54314721,0.00047571,2]
[355745284,1741525848083,-547.560157,0.00047573,2]
[355745285,1741525848093,-151.0,0.00047671,120]
[355745286,1741525848102,-151.0,0.00047671,120]
[355745287,1741525848112,-151.0,0.00047671,120]
[355745288,1741525848121,-500.0,0.00047671,120]
[355745289,1741525848131,-151.0,0.00047671,120]
[355745290,1741525848141,-151.0,0.00047671,120]
[355745291,1741525848150,-500.0,0.00047671,120]
[355745292,1741525848160,-500.0,0.00047671,120]
[355745293,1741525848170,-212.95256584,0.00047671,120]
[355745294,1741525848179,-500.0,0.00047671,120]
[355745295,1741525848188,-500.0,0.00047671,120]
[355745296,1741525848198,-500.0,0.00047671,120]
[355745297,1741525848210,-500.0,0.00047671,120]
[355745298,1741525848220,-500.0,0.00047671,120]
[355745299,1741525848229,-500.0,0.00047671,120]
[355745300,1741525848239,-500.0,0.00047671,120]
[355745301,1741525848250,-500.0,0.00047671,120]
[355745302,1741525848260,-500.0,0.00047671,120]
[355745303,1741525848270,-500.0,0.00047671,120]
[355745304,1741525848280,-210.30161755,0.00047671,120]
[355745305,1741525848291,-500.0,0.00047671,120]
[355745306,1741525848301,-500.0,0.00047671,120]
[355745307,1741525848310,-500.0,0.00047671,120]
[355745308,1741525848320,-500.0,0.00047671,120]
[355745309,1741525848330,-500.0,0.00047671,120]
[355745310,1741525848339,-500.0,0.00047671,120]
[355745311,1741525848349,-500.0,0.00047671,120]
[355745312,1741525848359,-437.50401602,0.00047671,2]
[355745313,1741525848368,-500.0,0.00047671,120]
[355745314,1741525848377,-500.0,0.00047671,2]
[355745315,1741525848387,-500.0,0.00047671,120]
[355745316,1741525848396,-500.0,0.00047671,120]
[355745317,1741525848406,-500.0,0.00047671,120]
[355745318,1741525848415,-162.390994,0.00047671,120]
[355745319,1741525848425,-162.390994,0.00047671,120]
[355745320,1741525848434,-500.0,0.00047671,120]
[355745321,1741525848444,-500.0,0.00047671,120]
[355745322,1741525848453,-500.0,0.00047671,120]
[355745323,1741525848463,-514.13,0.00047671,120]
[355745324,1741525848472,-593.43074701,0.00047671,120]
[355745325,1741525848482,-500.0,0.00047671,120]
[355745326,1741525848492,-500.0,0.00047671,120]
[355745327,1741525848501,-151.0,0.00047671,120]
[355745328,1741525848511,-151.0,0.00047671,120]
[355745329,1741525848522,-500.0,0.00047671,120]
[355745330,1741525848531,-663.63,0.00047671,120]
[355745331,1741525848541,-584.9981269,0.00047671,120]
[355745332,1741525848550,-500.0,0.00047671,120]
[355745333,1741525848559,-500.0,0.00047671,120]
[355745334,1741525848570,-500.0,0.00047671,120]
[355745335,1741525848579,-500.0,0.00047671,120]
[355745336,1741525848588,-500.0,0.00047671,120]
[355745337,1741525848599,-500.0,0.00047671,120]
[355745338,1741525848609,-615.51,0.00047671,120]
[355745339,1741525848619,-411.740416,0.00047671,120]
[355745340,1741525848629,-411.740416,0.00047671,120]
[355745341,1741525848639,-500.0,0.00047671,120]
[355745342,1741525848648,-411.740416,0.00047671,120]
[355745343,1741525848658,-411.740416,0.00047671,120]
[355745344,1741525848667,-500.0,0.00047671,120]
[355745345,1741525848677,-965.43,0.00047671,120]
[355745346,1741525848687,-500.0,0.00047671,120]
[355745347,1741525848696,-500.0,0.00047671,120]
[355745348,1741525848706,-500.0,0.00047671,120]
[355745349,1741525848716,-500.0,0.00047671,120]
[355745350,1741525848726,-500.0,0.00047671,120]
[355745351,1741525848736,-500.0,0.00047671,120]
[355745352,1741525848745,-500.0,0.00047671,120]
[355745353,1741525848755,-500.0,0.00047671,120]
[355745354,1741525848764,-500.0,0.00047671,120]
[355745355,1741525848774,-3808.73,0.00047671,120]
[355745356,1741525848783,-500.0,0.00047671,120]
[355745357,1741525848793,-500.0,0.00047671,120]
[355745358,1741525848803,-500.0,0.00047671,120]
[355745359,1741525848813,-840.95,0.00047671,120]
[355745360,1741525848822,-500.0,0.00047671,120]
[355745361,1741525848831,-500.0,0.00047671,120]
[355745362,1741525848841,-778.48,0.00047671,120]
[355745363,1741525848851,-500.0,0.00047671,120]
[355745364,1741525848860,-500.0,0.00047671,120]
[355745365,1741525848870,-500.0,0.00047671,15]
[355745366,1741525848879,-500.0,0.00047671,120]
[355745367,1741525848889,-500.0,0.00047671,120]
[355745368,1741525848898,-500.0,0.00047671,120]
[355745369,1741525848907,-808.3,0.00047671,120]
[355745370,1741525848917,-151.0,0.00047671,120]
[355745371,1741525848926,-151.0,0.00047671,120]
[355745372,1741525848936,-151.0,0.00047671,120]
[355745373,1741525848945,-201.911793,0.00047671,120]
[355745374,1741525848955,-500.0,0.00047671,120]
[355745375,1741525848964,-500.0,0.00047671,120]
[355745376,1741525848975,-500.0,0.00047671,120]
[355745377,1741525848984,-500.0,0.00047671,120]
[355745378,1741525848994,-500.0,0.00047671,120]
[355745379,1741525849003,-500.0,0.00047671,120]
[355745380,1741525849013,-500.0,0.00047671,120]
[355745381,1741525849022,-1439.53,0.00047671,120]
[355745382,1741525849032,-500.0,0.00047671,120]
[355745383,1741525849041,-500.0,0.00047671,120]
[355745384,1741525849050,-500.0,0.00047671,120]
[355745385,1741525849060,-500.0,0.00047671,120]
[355745386,1741525849069,-500.0,0.00047671,120]
[355745387,1741525849152,-500.0,0.00047671,120]
[355745388,1741525849162,-151.0,0.00047671,120]
[355745389,1741525849172,-241.961391,0.00047671,120]
[355745390,1741525849182,-500.0,0.00047671,120]
[355745391,1741525849193,-500.0,0.00047671,120]
[355745392,1741525849205,-500.0,0.00047671,120]
[355745393,1741525849218,-500.0,0.00047671,120]
[355745394,1741525849228,-500.0,0.00047671,120]
[355745395,1741525849239,-500.0,0.00047671,120]
[355745396,1741525849250,-286.135169,0.00047671,120]
[355745397,1741525849262,-500.0,0.00047671,120]
[355745398,1741525849272,-286.135169,0.00047671,120]
[355745399,1741525849283,-409.83936503,0.00047671,120]
[355745400,1741525849294,-540.80505446,0.00047671,120]
[355745401,1741525849304,-249.609834,0.00047671,120]
[355745402,1741525849315,-249.609834,0.00047671,120]
[355745403,1741525849326,-500.0,0.00047671,120]
[355745404,1741525849336,-286.135169,0.00047671,120]
[355745405,1741525849347,-286.135169,0.00047671,120]
[355745406,1741525849358,-500.0,0.00047671,120]
[355745407,1741525849368,-500.0,0.00047671,120]
[355745408,1741525849379,-249.609834,0.00047671,120]
[355745409,1741525849390,-249.609834,0.00047671,120]
[355745410,1741525849400,-500.0,0.00047671,120]
[355745411,1741525849410,-500.0,0.00047671,120]
[355745412,1741525849420,-500.0,0.00047671,120]
[355745413,1741525849431,-500.0,0.00047671,120]
[355745414,1741525849441,-1234.92,0.00047671,120]
[355745415,1741525849451,-500.0,0.00047671,120]
[355745416,1741525849461,-500.0,0.00047671,120]
[355745417,1741525849471,-500.0,0.00047671,120]
[355745418,1741525849480,-500.0,0.00047671,120]
[355745419,1741525849490,-500.0,0.00047671,120]
[355745420,1741525849499,-518.48875408,0.00047671,120]
[355745421,1741525849511,-500.0,0.00047671,120]
[355745422,1741525849521,-500.0,0.00047671,120]
[355745423,1741525849531,-500.0,0.00047671,120]
[355745424,1741525849540,-500.0,0.00047671,120]
[355745425,1741525849550,-500.0,0.00047671,120]
[355745426,1741525849560,-2612.41,0.00047671,120]
[355745427,1741525849569,-401.45508615,0.00047671,120]
[355745428,1741525849579,-500.0,0.00047671,120]
[355745429,1741525849589,-500.0,0.00047671,120]
[355745430,1741525849599,-500.0,0.00047671,120]
[355745431,1741525849609,-500.0,0.00047671,120]
[355745432,1741525849618,-678.46,0.00047671,120]
[355745433,1741525849628,-500.0,0.00047671,120]
[355745434,1741525849638,-500.0,0.00047671,120]
[355745435,1741525849647,-589.64,0.00047671,120]
[355745436,1741525849658,-500.0,0.00047671,120]
[355745437,1741525849667,-500.0,0.00047671,120]
[355745438,1741525849676,-500.0,0.00047671,120]
[355745439,1741525849686,-1515.68,0.00047671,120]
[355745440,1741525849695,-500.0,0.00047671,120]
[355745441,1741525849706,-500.0,0.00047671,120]
[355745442,1741525849715,-670.97,0.00047671,120]
[355745443,1741525849726,-999.28,0.00047671,120]
[355745444,1741525849735,-506.59,0.00047671,120]
[355745445,1741525849744,-502.43577232,0.00047671,120]
[355745446,1741525849754,-5226.29,0.00047671,120]
[355745447,1741525849766,-500.0,0.00047671,120]
[355745448,1741525849776,-552.67547533,0.00047671,120]
[355745449,1741525849785,-500.0,0.00047671,120]
[355745450,1741525849794,-500.0,0.00047671,120]
[355745451,1741525849804,-999.0,0.00047671,120]
[355745452,1741525849813,-512.7294608,0.00047671,120]
[355745453,1741525849822,-500.0,0.00047671,120]
[355745454,1741525849832,-500.0,0.00047671,120]
[355745455,1741525849841,-500.0,0.00047671,120]
[355745456,1741525849850,-587.04,0.00047671,120]
[355745457,1741525849860,-500.0,0.00047671,120]
[355745458,1741525849870,-8866.56,0.00047671,120]
[355745459,1741525849879,-500.0,0.00047671,120]
[355745460,1741525849889,-500.0,0.00047671,120]
[355745461,1741525849898,-3604.69,0.00047671,120]
[355745462,1741525849908,-972.72,0.00047671,120]
[355745463,1741525849918,-1116.22,0.00047671,120]
[355745464,1741525849927,-591.97,0.00047671,120]
[355745465,1741525849936,-500.0,0.00047671,120]
[355745466,1741525849946,-500.0,0.00047671,120]
[355745467,1741525849955,-500.0,0.00047671,120]
[355745468,1741525849966,-1339.65,0.00047671,120]
[355745469,1741525849975,-1343.94,0.00047671,120]
[355745470,1741525849984,-500.0,0.00047671,120]
[355745471,1741525849993,-500.0,0.00047671,120]
[355745472,1741525850002,-500.0,0.00047671,120]
[355745473,1741525850014,-500.0,0.00047671,120]
[355745474,1741525850023,-535.80556432,0.00047671,120]
[355745475,1741525850033,-500.0,0.00047671,120]
[355745476,1741525850043,-500.0,0.00047671,120]
[355745477,1741525850052,-500.0,0.00047671,120]
[355745478,1741525850062,-2072.12,0.00047671,120]
[355745479,1741525850071,-500.0,0.00047671,120]
[355745480,1741525850082,-548.941183,0.00047671,120]
[355745481,1741525850091,-548.941183,0.00047671,120]
[355745482,1741525850100,-500.0,0.00047671,120]
[355745483,1741525850110,-500.0,0.00047671,120]
[355745484,1741525850120,-548.941183,0.00047671,120]
[355745485,1741525850130,-500.0,0.00047671,120]
[355745486,1741525850140,-548.941183,0.00047671,120]
[355745487,1741525850149,-500.0,0.00047671,120]
[355745488,1741525850158,-1260.45,0.00047671,120]
[355745489,1741525850167,-500.0,0.00047671,120]
[355745490,1741525850178,-2731.32,0.00047671,120]
[355745491,1741525850187,-243.839853,0.00047671,120]
[355745492,1741525850197,-243.839853,0.00047671,120]
[355745493,1741525850211,-172.289373,0.00047671,120]
[355745494,1741525850221,-500.0,0.00047671,120]
[355745495,1741525850231,-243.839853,0.00047671,120]
[355745496,1741525850242,-243.839853,0.00047671,120]
[355745497,1741525850253,-500.0,0.00047671,120]
[355745498,1741525850265,-1000.0,0.00047671,7]
[355745499,1741525850274,-1272.16,0.00047671,120]
[355745500,1741525850284,-500.0,0.00047671,120]
[355745501,1741525850294,-500.0,0.00047671,120]
[355745502,1741525850303,-500.0,0.00047671,120]
[355745503,1741525850313,-933.32,0.00047671,120]
[355745504,1741525850322,-46273.82,0.00047671,7]
[355745505,1741525850331,-500.0,0.00047671,120]
[355745506,1741525850341,-500.0,0.00047671,120]
[355745507,1741525850350,-500.0,0.00047671,120]
[355745508,1741525850359,-500.0,0.00047671,120]
[355745509,1741525850370,-504.45314012,0.00047671,120]
[355745510,1741525850379,-843.72,0.00047671,120]
[355745511,1741525850389,-500.0,0.00047671,120]
[355745512,1741525850400,-1251.72,0.00047671,120]
[355745513,1741525850410,-500.0,0.00047671,120]
[355745514,1741525850420,-500.0,0.00047671,120]
[355745515,1741525850430,-181.850551,0.00047671,120]
[355745516,1741525850440,-500.0,0.00047671,120]
[355745517,1741525850449,-500.0,0.00047671,120]
[355745518,1741525850460,-500.0,0.00047671,120]
[355745519,1741525850469,-513.75268317,0.00047671,120]
[355745520,1741525850479,-500.0,0.00047671,120]
[355745521,1741525850488,-500.0,0.00047671,120]
[355745522,1741525850498,-1865.39,0.00047671,30]
[355745523,1741525850509,-500.0,0.00047671,120]
[355745524,1741525850519,-500.0,0.00047671,120]
[355745525,1741525850603,-500.0,0.00047671,120]
[355745526,1741525850613,-500.0,0.00047671,120]
[355745527,1741525850624,-500.0,0.00047671,120]
[355745528,1741525850634,-500.0,0.00047671,120]
[355745529,1741525850644,-500.0,0.00047671,120]
[355745530,1741525850654,-583.52,0.00047671,120]
[355745531,1741525850664,-615.43,0.00047671,120]
[355745532,1741525850673,-500.0,0.00047671,120]
[355745533,1741525850683,-500.0,0.00047671,120]
[355745534,1741525850694,-526.38702251,0.00047671,120]
[355745535,1741525850704,-1334.12,0.00047671,120]
[355745536,1741525850714,-637.41,0.00047671,120]
[355745537,1741525850723,-500.0,0.00047671,120]
[355745538,1741525850733,-500.0,0.00047671,120]
[355745539,1741525850742,-564.654,0.00047671,120]
[355745540,1741525850752,-500.0,0.00047671,120]
[355745541,1741525850763,-500.0,0.00047671,120]
[355745542,1741525850774,-665.99,0.00047671,120]
[355745543,1741525850783,-500.0,0.00047671,120]
[355745544,1741525850793,-260.03433,0.00047671,120]
[355745545,1741525850803,-260.03433,0.00047671,120]
[355745546,1741525850813,-500.0,0.00047671,120]
[355745547,1741525850823,-500.0,0.00047671,120]
[355745548,1741525850833,-260.03433,0.00047671,120]
[355745549,1741525850842,-260.03433,0.00047671,120]
[355745550,1741525850851,-202.23337734,0.00047671,120]
[355745551,1741525850862,-752.81,0.00047671,120]
[355745552,1741525850871,-500.0,0.00047671,120]
[355745553,1741525850881,-500.0,0.00047671,120]
[355745554,1741525850891,-224.673376,0.00047671,120]
[355745555,1741525850901,-221.28872117,0.00047671,120]
[355745556,1741525850911,-224.673376,0.00047671,120]
[355745557,1741525850921,-500.0,0.00047671,120]
[355745558,1741525850931,-500.0,0.00047671,120]
[355745559,1741525850940,-500.0,0.00047671,120]
[355745560,1741525850950,-500.0,0.00047671,2]
[355745561,1741525850960,-635.33,0.00047671,120]
[355745562,1741525850969,-224.673376,0.00047671,120]
[355745563,1741525850979,-224.673376,0.00047671,120]
[355745564,1741525850989,-13770.1,0.00047671,2]
[355745565,1741525850999,-500.0,0.00047671,120]
[355745566,1741525851009,-530.27423315,0.00047671,120]
[355745567,1741525851020,-500.0,0.00047673,10]
[355745568,1741525851030,-201.38687997,0.00047673,10]
[355745569,1741525851040,-250.0,0.00047721,3]
[355745570,1741525851049,-202.035754,0.000478,90]
[355745571,1741525851060,-150.0,0.000482,2]
[355745572,1741525851069,-151.0,0.00048209,120]
[355745573,1741525851078,-151.0,0.00048219,120]
[355745574,1741525851087,-151.0,0.00048219,120]
[355745575,1741525851096,-501.23477947,0.00048219,120]
[355745576,1741525851106,-151.0,0.00048219,120]
[355745577,1741525851115,-500.0,0.00048219,120]
[355745578,1741525851125,-500.0,0.00048219,120]
[355745579,1741525851134,-500.0,0.00048219,120]
[355745580,1741525851144,-500.0,0.00048219,120]
[355745581,1741525851154,-542.19946794,0.00048219,120]
[355745582,1741525851164,-500.0,0.00048219,120]
[355745583,1741525851173,-545.97708208,0.00048219,120]
[355745584,1741525851183,-307.47543051,0.00048219,120]
[355745585,1741525851194,-500.0,0.00048219,120]
[355745586,1741525851203,-500.0,0.00048219,120]
[355745587,1741525851218,-500.0,0.00048219,120]
[355745588,1741525851228,-500.0,0.00048219,120]
[355745589,1741525851237,-500.0,0.00048219,120]
[355745590,1741525851247,-210.02071735,0.00048219,120]
[355745591,1741525851261,-500.0,0.00048219,120]
[355745592,1741525851271,-500.0,0.00048219,120]
[355745593,1741525851280,-500.0,0.00048219,120]
[355745594,1741525851290,-500.0,0.00048219,120]
[355745595,1741525851300,-500.0,0.00048219,120]
[355745596,1741525851311,-500.0,0.00048219,120]
[355745597,1741525851321,-500.0,0.00048219,2]
[355745598,1741525851331,-500.0,0.00048219,120]
[355745599,1741525851341,-500.0,0.00048219,120]
[355745600,1741525851350,-500.0,0.00048219,120]
[355745601,1741525851360,-162.390994,0.00048219,120]
[355745602,1741525851369,-500.0,0.00048219,120]
[355745603,1741525851379,-500.0,0.00048219,120]
[355745604,1741525851389,-500.0,0.00048219,120]
[355745605,1741525851398,-514.13,0.00048219,120]
[355745606,1741525851407,-500.0,0.00048219,120]
[355745607,1741525851417,-500.0,0.00048219,120]
[355745608,1741525851427,-151.0,0.00048219,120]
[355745609,1741525851437,-151.0,0.00048219,120]
[355745610,1741525851447,-500.0,0.00048219,120]
[355745611,1741525851457,-663.63,0.00048219,120]
[355745612,1741525851467,-500.0,0.00048219,120]
[355745613,1741525851476,-165.02283977,0.00048219,120]
[355745614,1741525851485,-500.0,0.00048219,120]
[355745615,1741525851495,-500.0,0.00048219,120]
[355745616,1741525851505,-500.0,0.00048219,120]
[355745617,1741525851515,-615.51,0.00048219,120]
[355745618,1741525851525,-411.740416,0.00048219,120]
[355745619,1741525851535,-411.740416,0.00048219,120]